Cogmind - Beta 10 @@@ ROGUE MODE // 2020.09.20 @ 09:51:35 Player: FUTURIST Result: Destroyed by G-47 Trooper with Particle Gun Performance ------------- Evolutions (2) 1000 Regions Visited (4) 800 Robots Destroyed (14) 70 Value Destroyed (513) 513 Prototype IDs (0) 0 Alien Tech Used (0) 0 Bonus (0) 0 TOTAL SCORE: 2383 Bonus ------- None Cogmind --------- Core Integrity 0/550 Matter 300/300 Energy 74/100 System Corruption 5% Temperature Cool (9) Movement Core (550) Ox10 Location -8/Storage Parts ------- > --- POWER (2) -------- (None) > --- PROPULSION (3) --- (None) > --- UTILITY (3) ------ High-capacity Storage Unit > --- WEAPON (3) ------- (None) > --- INVENTORY (12) --- Armored Wheel Armored Wheel Advanced Visual Processing Unit Light Armor Plating Peak State ------------ > --- POWER ------------ Light Deuterium Engine Light Nuclear Core > --- PROPULSION ------- Aluminum Leg Improved Aluminum Leg Improved Aluminum Leg > --- UTILITY ---------- High-capacity Storage Unit Advanced Sensor Array Hardened Light Armor Plating > --- WEAPON ----------- EM Pulse Cannon Mace Great Maul > --- INVENTORY -------- Armored Wheel Armored Wheel Advanced Visual Processing Unit Light Armor Plating Light EM Pulse Cannon [Rating: 26] Favorites ----------- Power Light Deuterium Engine Engine Light Deuterium Engine Power Core Light Nuclear Core Propulsion Improved Aluminum Leg Leg Improved Aluminum Leg Wheel Wheel Flight Unit Flight Unit Utility Improved Signal Interpreter Device Advanced Sensor Array Storage High-capacity Storage Unit Processor Improved Signal Interpreter Protection Hardened Light Armor Plating Weapon Great Maul Energy Gun Beam Rifle Energy Cannon EM Pulse Cannon Ballistic Gun Light Assault Rifle Launcher Grenade Launcher Impact Weapon Great Maul Build | -11 -10 -9 -8 -8 ------- Run | Scr Mat Mat Mat Sto Slots Evolved 4 | . . 2 2 . Power 1 | . . 1 . . Propulsion 1 | . . . 1 . Utility 1 | . . 1 . . Weapon 1 | . . . 1 . Parts Attached 42 | 7 4 8 16 7 Power 8 | 1 . 3 3 1 Engine 6 | 1 . 3 2 . Core 2 | . . . 1 1 Reactor . | . . . . . Propulsion 13 | 2 2 4 5 . Treads . | . . . . . Leg 3 | . . . 3 . Wheel 6 | 2 . 2 2 . Hover . | . . . . . Flight 4 | . 2 2 . . Utility 8 | 1 . 1 4 2 Device 2 | . . . . 2 Storage 3 | 1 . . 2 . Processor 1 | . . 1 . . Hackware . | . . . . . Protection 2 | . . . 2 . Artifact . | . . . . . Weapon 13 | 3 2 . 4 4 Energy Gun 2 | 1 . . . 1 Energy Cannon 5 | . . . 2 3 Ballistic Gun 3 | 2 1 . . . Ballistic Cannon . | . . . . . Launcher 1 | . 1 . . . Special Weapon . | . . . . . Impact Weapon 2 | . . . 2 . Slashing Weapon . | . . . . . Piercing Weapon . | . . . . . Special Melee Weapon . | . . . . . Unidentified Prototypes . | . . . . . Parts Lost 25 | . 1 7 4 13 Power 6 | . . 3 1 2 Propulsion 7 | . . 2 2 3 Utility 3 | . . . . 3 Weapon 9 | . 1 2 1 5 Highest Loss Streak 13 | . 1 4 2 13 Average Slot Usage (%) 65 | . 78 34 68 87 Engine 8 | . 14 8 7 6 Core 1 | . . . . 6 Leg 10 | . . . 10 23 Wheel 4 | . 18 1 4 . Flight 5 | . 9 8 5 . Device 1 | . . . . 6 Storage 5 | . 10 . 6 9 Processor 6 | . . 8 9 2 Protection 3 | . . . 5 6 Energy Cannon 4 | . . . 6 7 Ballistic Gun 4 | . 20 7 . . Impact Weapon 8 | . . . 12 16 Naked Turns . | . . . . . Heaviest Build 60 | 11 13 7 54 60 Greatest Support 36 | 26 26 20 36 36 Greatest Overweight (x) 10 | 2 1 1 4 10 Average Overweight (x) . | . . . . 1 Largest Inventory Capacity 12 | 6 6 4 12 12 Average Capacity 8 | 5 5 4 9 12 Most Carried 6 | 6 5 3 6 6 Average Carried 2 | 3 2 . 2 3 Final Capacity 12 | 6 4 4 12 12 Final Carried 5 | 2 1 2 5 4 Class Distribution -------------------- 100% | Mutant Dominant Class ---------------- Mutant | -10/Materials Mutant | -9/Materials Mutant | -8/Materials Mutant | -8/Storage Resources | -11 -10 -9 -8 -8 ----------- Run | Scr Mat Mat Mat Sto Matter Collected 532 | 232 . 65 225 10 Remotely . | . . . . . Salvage Created 601 | . 54 40 392 115 Parts 29 | . 2 5 16 6 Haulers Intercepted . | . . . . . Recyclers Shooed . | . . . . . Parts Field Recycled . | . . . . . Retrieved Matter . | . . . . . Parts Self-Destructed . | . . . . . Prevented . | . . . . . Kills | -11 -10 -9 -8 -8 ------- Run | Scr Mat Mat Mat Sto Combat Hostiles Destroyed 11 | . 2 1 6 2 Melee 2 | . . . 1 1 Guns 3 | . 1 1 . 1 Cannons 5 | . . . 5 . AOE 1 | . 1 . . . Classes Destroyed 7 | . 1 1 4 1 Worker 1 | . . . 1 . Builder 1 | . . 1 . . Tunneler 1 | . . . 1 . Grunt 5 | . 2 1 2 . Brawler 1 | . . . . 1 Sentry 4 | . . . 3 1 Hunter 1 | . . . 1 . Best Kill Streak 3 | . 1 2 3 1 Combat Bots Only 2 | . 1 1 2 1 Max Kills in Single Turn 1 | . 1 1 1 1 Gunslinging . | . . . . . Exploded 1 | . 1 . . . Melee 1 | . . . 1 1 Uniques/NPCs Destroyed . | . . . . . Combat | -11 -10 -9 -8 -8 -------- Run | Scr Mat Mat Mat Sto Damage Taken 2612 | . 162 714 655 1081 Core 903 | . 31 310 228 334 Absorbed by Shields 15 | . . . . 15 Core Remaining (%) 69 | 100 87 22 . . Volleys Fired 35 | . 14 11 7 3 Largest 2 | . 1 2 1 1 Hottest 75 | . 30 40 75 63 Shots Fired 45 | . 14 21 7 3 Gun 31 | . 8 21 . 2 Cannon 8 | . . . 7 1 Launcher 6 | . 6 . . . Special . | . . . . . Kinetic 29 | . 8 21 . . Thermal 6 | . . . 4 2 Explosive 6 | . 6 . . . Electromagnetic 4 | . . . 3 1 Robot Hit Streak 13 | . 4 5 11 13 Robot Miss Streak 2 | . 1 2 . . Penetration Max . | . . . . . Secondary Targets . | . . . . . Shots Hit Robots 58 | . 9 15 18 16 Core Hits 30 | . 4 12 8 6 Critical Hits . | . . . . . Critical Kills . | . . . . . Critical Parts Destroyed . | . . . . . Melee Attacks 31 | . . . 15 16 Impact 31 | . . . 15 16 Slashing . | . . . . . Piercing . | . . . . . Sneak Attacks 4 | . . . 4 . Combat Hostiles . | . . . . . Follow-up Attacks 5 | . . . 2 3 Damage Inflicted 1309 | . 209 166 669 265 Guns 215 | . 46 140 . 29 Cannons 166 | . . . 166 . Explosions 163 | . 163 . . . Melee 739 | . . . 503 236 Ramming 26 | . . 26 . . Kinetic 186 | . 46 140 . . Thermal 129 | . . . 100 29 Explosive 163 | . 163 . . . Electromagnetic 66 | . . . 66 . Impact 739 | . . . 503 236 Slashing . | . . . . . Piercing . | . . . . . Highest Corruption 5 | . . . . 5 Average Corruption 4 | . . . . 4 Corruption Purged . | . . . . . Effects 1 | . . . . 1 Data Loss (minor) 1 | . . . . 1 Overload Shots . | . . . . . Overflow Damage 87 | . . . 79 8 Projectiles . | . . . . . Explosions . | . . . . . Melee 87 | . . . 79 8 Knockbacks 2 | . . . 2 . Impact 2 | . . . 2 . Kinetic . | . . . . . Secondary . | . . . . . Self-Inflicted Damage 9 | . . 9 . . Shots . | . . . . . Rammed 13 | . . 12 . 1 Targets Rammed 13 | . . 12 . 1 Kicked . | . . . . . Crushed . | . . . . . Highest Temperature 120 | . 9 26 120 18 Average Temperature 23 | . 7 12 43 7 Received Heat Transfer 1128 | . 90 372 261 405 Siege Activations . | . . . . . Robots Corrupted . | . . . . . Combat Hostiles . | . . . . . Parts Fried . | . . . . . Impact Corruptions 5 | . . . 4 1 Robots Melted . | . . . . . Combat Hostiles . | . . . . . Parts Melted 1 | . . . 1 . Heat Transferred 222 | . . . 148 74 Parts Sabotaged . | . . . . . Parts Stolen . | . . . . . Parts Stripped . | . . . . . Power Chain Reactions . | . . . . . Missiles Intercepted . | . . . . . Alert | -11 -10 -9 -8 -8 ------- Run | Scr Mat Mat Mat Sto Peak Influence 229 | . 70 79 229 111 Initial 96 | . . 29 24 96 Average 79 | . 40 49 113 89 Maximum Alert Level 1 | . . . 1 . Low Security (%) 99 | 100 100 100 98 100 Level 1 . | . . . 1 . Level 2 . | . . . . . Level 3 . | . . . . . Level 4 . | . . . . . Level 5 . | . . . . . High Security . | . . . . . Max Security . | . . . . . Squads Dispatched 4 | . . 3 . 1 Investigation . | . . . . . Extermination . | . . . . . Reinforcement 4 | . . 3 . 1 Assault . | . . . . . Garrison . | . . . . . Intercept . | . . . . . Construction Impeded . | . . . . . Haulers Reinforced . | . . . . . Stealth | -11 -10 -9 -8 -8 --------- Run | Scr Mat Mat Mat Sto Distress Signals 4 | . . 4 . . Communications Jammed . | . . . . . Distress Signals . | . . . . . Times Spotted 27 | . 2 13 7 5 Peak Tracking Total 7 | . 2 7 2 5 Tactical Retreats 2 | . . 2 . . Traps | -11 -10 -9 -8 -8 ------- Run | Scr Mat Mat Mat Sto Traps Triggered . | . . . . . Indirectly . | . . . . . Trap Hack Attempts . | . . . . . Triggered . | . . . . . Disarmed . | . . . . . Reprogrammed . | . . . . . Reused . | . . . . . Traps Extracted . | . . . . . Installed . | . . . . . Triggered . | . . . . . Machines | -11 -10 -9 -8 -8 ---------- Run | Scr Mat Mat Mat Sto Machines Disabled 2 | . 2 . . . Max in Single Turn 2 | . 2 . . . Machines Sabotaged . | . . . . . Garrisons Compromised . | . . . . . Overloaded Fab Kills . | . . . . . Fab Network Shutdowns . | . . . . . Hacking | -11 -10 -9 -8 -8 --------- Run | Scr Mat Mat Mat Sto Machines Accessed . | . . . . . Terminals . | . . . . . Fabricators . | . . . . . Repair Stations . | . . . . . Recycling Units . | . . . . . Scanalyzers . | . . . . . Garrison Access . | . . . . . Total Hacks . | . . . . . Successful . | . . . . . Failed . | . . . . . Catastrophic . | . . . . . Database Lockouts . | . . . . . Manual . | . . . . . Terminals . | . . . . . Fabricators . | . . . . . Repair Stations . | . . . . . Recycling Units . | . . . . . Scanalyzers . | . . . . . Garrison Access . | . . . . . Terminal Hacks . | . . . . . Fabricator Hacks . | . . . . . Repair Station Hacks . | . . . . . Recycling Unit Hacks . | . . . . . Scanalyzer . | . . . . . Garrison Access Hacks . | . . . . . Unauthorized Hacks . | . . . . . Terminals . | . . . . . Fabricators . | . . . . . Repair Stations . | . . . . . Recycling Units . | . . . . . Scanalyzers . | . . . . . Garrison Access . | . . . . . Data Cores Recovered . | . . . . . Used . | . . . . . Hacking Detections . | . . . . . Full Trace Events . | . . . . . Feedback Events . | . . . . . Feedback Blocked . | . . . . . Robot Schematics Acquired . | . . . . . Robots Built . | . . . . . Matter . | . . . . . Time . | . . . . . Total Robot Build Rating . | . . . . . Part Schematics Acquired . | . . . . . Parts Built . | . . . . . Matter . | . . . . . Time . | . . . . . Total Part Build Rating . | . . . . . Parts Repaired . | . . . . . Time . | . . . . . Parts Recycled . | . . . . . Recycled Matter . | . . . . . Retrieved Matter . | . . . . . Retrieved Components . | . . . . . Parts Scanalyzed . | . . . . . Part Schematics Acquired . | . . . . . Parts Damaged . | . . . . . Bothacking | -11 -10 -9 -8 -8 ------------ Run | Scr Mat Mat Mat Sto Used RIF Installer . | . . . . . Robots Hacked . | . . . . . Non-combat . | . . . . . Combat . | . . . . . Robot Hacks Applied . | . . . . . Relay Couplers Released . | . . . . . Robots Rewired . | . . . . . Allies Hacked . | . . . . . Hacks Repelled . | . . . . . Allies | -11 -10 -9 -8 -8 -------- Run | Scr Mat Mat Mat Sto Total Allies . | . . . . . Largest Group . | . . . . . Highest-Rated Group . | . . . . . Highest-Rated Ally . | . . . . . Total Orders . | . . . . . Ally Attacks . | . . . . . Total Damage . | . . . . . Kills . | . . . . . Allies Corrupted . | . . . . . Allies Melted . | . . . . . Intel | -11 -10 -9 -8 -8 ------- Run | Scr Mat Mat Mat Sto Robot Analysis Total . | . . . . . Derelict Logs Recovered . | . . . . . Drone Launches . | . . . . . Drone Recoveries . | . . . . . Exploration | -11 -10 -9 -8 -8 ------------- Run | Scr Mat Mat Mat Sto Turns Passed 897 | 50 97 202 322 226 Spaces Moved 743 | 39 98 258 245 103 Core 133 | 23 . 108 . 2 Treads . | . . . . . Legs 181 | . . . 80 101 Wheels 125 | 16 34 7 68 . Hover . | . . . . . Flight 304 | . 64 143 97 . Fastest Speed 37 | 50 37 37 42 150 Average Speed 86 | 90 57 56 98 157 Slowest Speed 550 | 150 117 120 180 550 Overloaded Moves . | . . . . . Propulsion Burnouts . | . . . . . Robots Hopped . | . . . . . Cave-ins Triggered . | . . . . . Exploration Rate (%) 18 | 2 19 25 25 21 Regions Visited 4 Branch Regions 1 Pre-discovered Areas . | . . . . . Known Exits Taken 1 | . . . 1 . Unknown Exits Taken 3 | 1 1 1 . . Scrap Searched . | . . . . . Spaces Dug . | . . . . . Terrain Destroyed 41 | . 41 . . . Melee . | . . . . . Projectile . | . . . . . AOE 41 | . 41 . . . Terrain Rammed . | . . . . . Walls Destroyed . | . . . . . Machines Disabled . | . . . . . Actions | -11 -10 -9 -8 -8 --------- Run | Scr Mat Mat Mat Sto Total 909 | 51 126 295 296 141 Wait 8 | . 2 . 1 5 Move 739 | 38 97 257 244 103 Hop . | . . . . . Pick Up 36 | 6 4 6 13 7 Fast Attach 2 | 2 . . . . Attach 28 | 4 1 6 12 5 Detach 3 | . . 1 2 . Swap 12 | 1 3 2 4 2 Drop 7 | . 5 . . 2 Fire 35 | . 14 11 7 3 Melee 26 | . . . 13 13 Ram 13 | . . 12 . 1 Kick . | . . . . . Crush . | . . . . . Escape Stasis . | . . . . . Rewire . | . . . . . Trap . | . . . . . Miscellaneous . | . . . . . Route ------- -11/Scrapyard -10/Materials -9/Materials -8/Materials -8/Storage History --------- Turn | Location | Event 26 | -11/Scrapyard | Discovered new exit (range 15) 51 | -11/Scrapyard | Entered Materials 146 | -10/Materials | Discovered new exit (range 3) 148 | -10/Materials | Entered another Materials area 148 | -9/Materials | Evolved 2 slots: Power x1, Utility x1 253 | -9/Materials | Lost 4 parts (2n2w) 305 | -9/Materials | Build established: Mutant 316 | -9/Materials | Core integrity fell below 50% 344 | -9/Materials | Discovered new exit (range 16) 350 | -9/Materials | Entered another Materials area 350 | -8/Materials | Evolved 2 slots: Propulsion x1, Weapon x1 657 | -8/Materials | Discovered new exit (range 10) 671 | -8/Materials | Identified exit to Storage 672 | -8/Materials | Entered Storage 849 | -8/Storage | Core integrity fell below 50% 885 | -8/Storage | Core integrity fell below 20% 898 | -8/Storage | Destroyed by G-47 Trooper with Particle Gun Last Messages --------------- 00873_ Imp. Aluminum Leg destroyed. 00875_ Great Maul destroyed. 00875_ System corrupted by crushing effect (+2). 00876_ K-01 Serf collects debris. 00877_ Aluminum Leg destroyed. 00877_ System corrupted by crushing effect (+2). 00878_ K-01 Serf collects debris. 00878_ EM Pulse Cannon destroyed. 00880_ System corrupted: Component data lost. 00881_ K-01 Serf collects debris. 00884_ Acquired Beam Rifle. 00884_ K-01 Serf collects debris. 00888_ B-36 Bruiser destroyed. 00888_ K-01 Serf collects debris. 00888_ K-01 Serf destroyed. 00888_ Beam Rifle destroyed. 00891_ K-01 Serf collects debris. 00892_ Acquired 10 matter. 00894_ K-01 Serf collects debris. 00897_ Slammed into G-47 Trooper. Map ----- +----------------------------------------------------+ | | | | | | | | | | | | | | | | | | | | | | | | | ???????????????????????????????????############ | | ???????????????????????????????????# | | ???????????????????????????????????# """ " | | ???????????????????????????????????# """ Y | | ???????????????????????????????????# """ " | | ???????????????????#############???# ] | | ???????????????????# ##############+# | | ???????????????????# | | ???????????????????# | | ???????????????????# | | ???????????????????# ####+#########+# | | ???????????????????#########+##### ???# # | | ????????????????????#%==g u # """ #?# T | | ????????????????????#Y@k" """ # """ "###" "# | | ????????????????????#g""" """ # """ T##! | | ???????????????????#*!""" """ # "##! ! | | ???????????????????##% # """ ###!! ! | | ????????????????????##a########### """ #?#!!! ! | | ?????????????????????# #?????????# ??????###### | | ?????????????????????# #?????????# ???????????? | | ????????????????????? ?????????# ???????????? | | ????????????????????? ?????????# ???????????? | | ????????????????????? ??????????????????????? | | ????????????????????? ??????????????????????? | | ????????????????????? #??????????????????????? | | ??????????????????????????????????????????????? | | ??????????????????????????????????????????????? | | ??????????????????????????????????????????????? | | ??????????????????????????????????????????????? | | ??????????????????????????????????????????????? | | ??????????????????????????????????????????????? | | ??????????????????????????????????????????????? | | ??????????????????????????????????????????????? | | ??????????????????????????????????????????????? | | ??????????????????????????????????????????????? | | ??????????????????????????????????????????????? | | ??????????????????????????????????????????????? | | ??????????????????????????????????????????????? | +----------------------------------------------------+ Best States ------------- Heat Dissipation 31 Energy Generation 23 Energy Capacity 250 Matter Stores 300 Matter Capacity 300 Sight Range 16 Robot Scan Range 16 Terrain Scan Density 10 Armor Coverage 150 Evasion (%) 62 Item Schematics ----------------- None Robot Schematics ------------------ None Fabricated ------------ Nothing Alien Tech Used ----------------- None Achievements -------------- None Challenges ------------ None Game ------ Seed DataControlDriver Manual? 0 Play Time 00:21:13 Cumulative 3.1 hours Start 2020.09.20 @ 09:33:29 End 2020.09.20 @ 09:51:35 Sessions 1 Manual Loads 0 Difficulty Rogue Special Mode None Game No. 22 Rogue 22 Adventurer 0 Explorer 0 Win Type - Total 0 Types 0/0/0/0/0/0/0/0/0 Lore% 0 Gallery% 8 Achievement% 2 Wizard Run 0 Options --------- ASCII 0 Keyboard 0 Movement Mouse Keybinds 0 Fullscreen 1 Font 18/SmallcapsGlow Map View 76x50 Tactical HUD 1 Map Filters NONE Filters NONE Steam 1 RUN: b422932e-91b0-46f9-8148-d0f45994a689